bitfinex/quotes_SOLUSD_20250831
["timestamp","ask_amount","ask_price","bid_price","bid_amount"]
[1756599078782,4.62832904,203.93,203.92,52.57559401]
[1756599079669,4.62832904,203.93,203.9,18.49988313]
[1756599079985,0.71000001,203.93,203.92,13.59559401]
[1756599080701,0.71000001,203.93,203.9,13.59559401]
[1756599080878,1e-08,203.93,203.92,13.59559401]
[1756599081078,4.62832904,203.93,203.92,13.59559401]
[1756599081488,4.62832904,203.93,203.88,0.03]
[1756599081794,0.71,203.92,203.9,13.59559401]
[1756599081985,4.62832903,203.91,203.9,13.59559401]
[1756599082291,4.62832903,203.91,203.89,38.96]
[1756599082469,0.71,203.9,203.89,52.55559401]
[1756599083105,4.62832903,203.9,203.89,52.55559401]
[1756599083672,4.62832903,203.9,203.89,38.96]
[1756599084085,4.62832903,203.9,203.89,38.99]
[1756599084991,4.62832903,203.9,203.89,0.03]
[1756599085197,4.62832903,203.9,203.89,38.95]
[1756599085776,9.53269391,203.9,203.89,38.95]
[1756599085983,9.53269391,203.9,203.89,0.03]
[1756599088210,30.62832903,203.9,203.89,0.03]
[1756599088386,3.91832903,203.91,203.89,13.62559401]
[1756599088704,3.91832903,203.91,203.9,52.49559401]
[1756599089012,0.06000001,203.93,203.91,13.59559401]
[1756599089185,3.97832904,203.93,203.92,52.51559401]
[1756599092319,0.06000001,203.93,203.92,38.92]
[1756599092490,4.68832904,203.93,203.91,38.9]
[1756599092695,4.62832903,203.92,203.91,38.9]
[1756599095921,3.91832903,203.92,203.91,38.9]
[1756599097718,0.06000001,203.93,203.91,38.9]
[1756599097900,3.91832903,203.92,203.91,38.9]
[1756599098819,3.91832903,203.92,203.89,0.03]
[1756599099000,3.91832903,203.9,203.89,0.03]
[1756599099203,3.91832903,203.91,203.89,52.44559401]
[1756599099501,3.91832903,203.9,203.89,53.15559401]
[1756599099695,3.91832903,203.9,203.89,52.44559401]
[1756599099899,0.06000001,203.93,203.89,52.44559401]
[1756599100218,3.91832903,203.9,203.89,52.44559401]
[1756599101422,0.77000001,203.93,203.89,52.44559401]
[1756599101725,3.91832903,203.9,203.89,52.44559401]
[1756599101899,3.91832903,203.9,203.89,0.03]
[1756599102103,3.91832903,203.9,203.89,38.81]
[1756599102823,4.62832903,203.9,203.89,0.03]
[1756599103119,3.91832903,203.9,203.89,38.81]
[1756599103320,0.71,203.92,203.89,38.81]
[1756599103528,3.91832903,203.9,203.89,38.81]
[1756599103826,0.06000001,203.93,203.89,53.11559401]
[1756599104005,3.97832904,203.93,203.91,13.59559401]
[1756599104319,0.06000001,203.93,203.92,52.37559401]
[1756599104811,0.06000001,203.93,203.92,53.08559401]
[1756599106004,0.06000001,203.93,203.92,57.98947788]
[1756599107100,0.06000001,203.93,203.92,57.27947788]
[1756599108123,3.97832904,203.93,203.92,52.37559401]
[1756599108322,3.97832904,203.93,203.92,52.35559401]
[1756599109128,3.97832904,203.93,203.92,38.76]
[1756599109324,0.06000001,203.93,203.92,57.96947788]
[1756599109498,0.06000001,203.93,203.92,53.06559401]
[1756599109697,3.97832904,203.93,203.92,53.06559401]
[1756599111831,3.97832904,203.93,203.92,61.88780691]
[1756599111832,0.06000001,203.93,203.92,61.88780691]
[1756599112125,0.06000001,203.93,203.92,57.98947788]
[1756599112446,0.06000001,203.93,203.92,65.54865742]
[1756599114020,0.06000001,203.93,203.92,65.60865742]
[1756599116627,1e-08,203.93,203.92,91.60865742]
[1756599117208,1e-08,203.93,203.92,52.76865742]
[1756599117437,1e-08,203.93,203.92,91.56865742]
[1756599120127,1e-08,203.93,203.92,52.76865742]
[1756599120429,1e-08,203.93,203.92,91.52865742]
[1756599120944,1e-08,203.93,203.92,52.76865742]
[1756599121152,1e-08,203.93,203.92,91.52865742]
[1756599121452,1e-08,203.93,203.92,87.88780691]
[1756599122022,1e-08,203.93,203.92,61.88780691]
[1756599122222,1e-08,203.93,203.92,61.91780691]
[1756599122438,1e-08,203.93,203.92,70.73691191]
[1756599123146,1e-08,203.93,203.92,70.71691191]
[1756599126222,1e-08,203.93,203.92,70.69691191]
[1756599128838,1e-08,203.93,203.92,96.69691191]
[1756599129037,1e-08,203.93,203.92,92.77858288]
[1756599129235,1e-08,203.93,203.92,96.69691191]
[1756599129431,1e-08,203.93,203.92,54.05858288]
[1756599129738,1e-08,203.93,203.92,96.63691191]
[1756599133241,1e-08,203.93,203.92,87.08780691]
[1756599133642,1e-08,203.93,203.92,48.44780691]
[1756599133957,1e-08,203.93,203.92,87.06780691]
[1756599135245,1e-08,203.93,203.92,87.78780691]
[1756599136167,1e-08,203.93,203.92,48.44780691]
[1756599136335,1e-08,203.93,203.92,87.04780691]
[1756599137733,0.72000001,203.93,203.92,18.52947788]
[1756599137934,0.72000001,203.93,203.92,52.20559401]
[1756599138735,0.72000001,203.93,203.92,57.10947788]
[1756599142662,1e-08,203.93,203.92,61.02780691]
[1756599142847,1e-08,203.93,203.92,22.44780691]
[1756599143032,1e-08,203.93,203.92,61.00780691]
[1756599144237,1e-08,203.93,203.92,62.97336091]
[1756599144858,1e-08,203.93,203.92,59.05503188]
[1756599146356,0.72000001,203.93,203.92,59.01503188]
[1756599147852,1e-08,203.93,203.92,59.01503188]
[1756599152073,1e-08,203.93,203.92,15.59114801]
[1756599152284,4.61832904,203.93,203.92,1.995554]
[1756599152561,26.0,203.91,203.89,0.03]
[1756599152767,3.91832903,203.9,203.89,29.87]
[1756599153061,4.51832903,203.9,203.89,29.87]
[1756599153271,4.51832903,203.9,203.89,0.03]
[1756599154059,30.51832903,203.9,203.89,0.03]
[1756599154265,35.42269391,203.9,203.89,0.03]
[1756599154466,55.42269391,203.9,203.87,0.03]
[1756599154767,55.42269391,203.9,203.82,0.03]
[1756599154768,26.0,203.85,203.82,0.03]
[1756599154946,7.83665806,203.83,203.82,0.03]
[1756599155342,8.34665806,203.83,203.82,0.03]
[1756599156465,13.25270721,203.83,203.82,0.03]
[1756599161080,5.41604915,203.83,203.82,0.03]
[1756599161268,13.25270721,203.83,203.82,0.03]
[1756599173673,3.95108914,203.86,203.82,0.03]
[1756599173879,5.57097539,203.95,203.82,14.34559401]
[1756599173880,3.91832903,203.83,203.82,14.34559401]
[1756599174192,3.91832903,203.84,203.83,13.59559401]
[1756599174385,3.91832903,203.87,203.83,14.31559401]
[1756599174700,3.91832903,203.91,203.86,3.91832903]
[1756599174896,3.91832903,203.9,203.88,13.59559401]
[1756599175102,1e-08,203.93,203.89,14.31559401]
[1756599175301,3.91832903,203.9,203.89,14.31559401]
[1756599175902,3.91832903,203.9,203.87,0.72]
[1756599176101,3.91832903,203.88,203.84,27.91118801]
[1756599176396,3.91832903,203.87,203.84,32.8169774]
[1756599176589,3.91832903,203.85,203.83,13.59559401]
[1756599176788,3.91832903,203.85,203.84,15.469625]
[1756599177704,3.91832903,203.85,203.84,0.72]
[1756599179704,3.91832903,203.85,203.83,13.59559401]
[1756599180011,3.91832903,203.84,203.83,14.31559401]
[1756599180711,3.91832903,203.84,203.82,3.948329]
[1756599181012,33.83665806,203.83,203.82,0.03]
[1756599181579,34.34665806,203.83,203.82,0.03]
[1756599181806,33.83665806,203.83,203.82,0.03]
[1756599182900,39.25270721,203.83,203.82,0.03]
[1756599183581,3.91832903,203.83,203.82,0.75]
[1756599183978,3.91832903,203.83,203.82,0.03]
[1756599184880,38.74270721,203.83,203.82,0.03]
[1756599187793,39.25270721,203.83,203.82,0.03]
[1756599188293,13.25270721,203.83,203.82,0.03]
[1756599192395,12.74270721,203.83,203.82,0.03]
[1756599193288,13.25270721,203.83,203.82,0.03]
[1756599193784,51.73270721,203.83,203.82,0.03]
[1756599199322,51.22270721,203.83,203.82,0.03]
[1756599201616,51.73270721,203.83,203.82,0.03]
[1756599204416,51.73270721,203.83,203.82,1e-08]
[1756599209216,12.74270721,203.83,203.82,1e-08]
[1756599209427,12.74270721,203.83,203.82,0.72000001]
[1756599209428,51.22270721,203.83,203.82,0.72000001]
[1756599209724,51.22270721,203.83,203.82,1e-08]
[1756599212822,51.22270721,203.83,203.82,0.66000001]
[1756599213111,51.22270721,203.83,203.82,1e-08]
[1756599213515,51.73270721,203.83,203.82,1e-08]
[1756599214211,51.22270721,203.83,203.82,1e-08]
[1756599218911,51.73270721,203.83,203.82,1e-08]
[1756599219233,55.82322454,203.83,203.82,1e-08]
[1756599219928,26.0,203.8,203.77,0.69]
[1756599220121,7.83665806,203.78,203.77,0.03]
[1756599220321,46.31665806,203.78,203.76,0.03]
[1756599220520,11.92717539,203.77,203.76,0.03]
[1756599220916,16.83466913,203.77,203.76,0.03]
[1756599221316,26.0,203.75,203.74,0.66]
[1756599221524,72.31665806,203.75,203.74,0.66]
[1756599223535,77.22463352,203.75,203.74,0.66]
[1756599223734,38.74463352,203.75,203.74,0.66]
[1756599223934,77.22463352,203.75,203.74,0.66]
[1756599224934,77.22463352,203.75,203.67,0.03]
[1756599225239,7.83665806,203.74,203.73,0.69]
[1756599225437,12.74487441,203.74,203.73,0.69]
[1756599225831,12.74487441,203.74,203.73,0.03]
[1756599226032,12.74487441,203.74,203.73,0.69]
[1756599231643,4.90821635,203.74,203.73,0.69]
[1756599231943,73.30654538,203.74,203.73,0.69]
[1756599232748,26.0,203.74,203.73,0.69]
[1756599232942,3.91832903,203.75,203.73,0.69]
[1756599233247,3.91832903,203.74,203.73,0.69]
[1756599237855,26.0,203.76,203.73,0.69]
[1756599238054,3.91832903,203.74,203.73,0.69]
[1756599240360,26.0,203.76,203.73,0.69]
[1756599240653,3.91832903,203.74,203.73,0.69]
[1756599244256,3.91832903,203.74,203.73,14.28559401]
[1756599244458,4.90623078,203.83,203.74,13.59559401]
[1756599244642,4.90623078,203.83,203.75,4.58832903]
[1756599244842,42.64899181,203.86,203.77,13.59559401]
[1756599245049,3.91832903,203.8,203.78,0.67]
[1756599245450,26.0,203.83,203.78,0.67]
[1756599245647,3.91832903,203.8,203.78,0.67]
[1756599245956,3.91832903,203.79,203.78,14.26559401]
[1756599246154,3.91832903,203.79,203.78,19.17282838]
[1756599247056,0.06,203.79,203.78,19.17282838]
[1756599247755,0.06,203.79,203.78,23.09115738]
[1756599252074,0.06,203.79,203.75,3.91832903]
[1756599252075,3.97832903,203.79,203.76,13.59559401]
[1756599252241,3.91832903,203.77,203.76,13.59559401]
[1756599252557,3.91832903,203.77,203.75,0.67]
[1756599252760,3.91832903,203.76,203.75,14.26559401]
[1756599255160,0.06,203.79,203.75,14.26559401]
[1756599255161,3.97832903,203.79,203.76,13.59559401]
[1756599255361,0.06,203.79,203.78,13.59559401]
[1756599255663,0.06,203.79,203.78,14.26559401]
[1756599256461,0.06,203.79,203.78,19.17284692]
[1756599259050,0.06,203.79,203.78,33.92609892]
[1756599259762,0.06,203.79,203.78,72.36609892]
[1756599261349,0.06,203.79,203.78,33.92609892]
[1756599261650,0.06,203.79,203.78,57.61284692]
[1756599261851,0.06,203.79,203.78,63.08823792]
[1756599264845,3.97832903,203.79,203.78,63.08823792]
[1756599265871,3.97832903,203.79,203.78,19.07098501]
[1756599273371,0.06,203.79,203.78,24.68823792]
[1756599273576,0.06,203.81,203.78,28.60656695]
[1756599273777,0.06,203.81,203.8,13.59559401]
[1756599274088,3.97832903,203.81,203.8,52.01559401]
[1756599274275,3.97832903,203.81,203.8,16.27259701]
[1756599274469,3.97832903,203.81,203.8,54.69259701]
[1756599277794,3.97832903,203.81,203.8,16.27259701]
[1756599277987,3.97832903,203.81,203.8,15.56259701]
[1756599278287,3.97832903,203.81,203.8,53.98259701]
[1756599278800,8.88485962,203.81,203.76,0.74]
[1756599278999,8.88485962,203.81,203.77,52.01559401]
[1756599279000,5.53653059,203.81,203.77,52.01559401]
[1756599279167,5.53653059,203.81,203.78,14.755429]
[1756599280006,0.57,203.8,203.78,53.175429]
[1756599280370,3.91832903,203.79,203.78,66.77102301]
[1756599282092,3.91832903,203.79,203.78,28.35102301]
[1756599282271,3.91832903,203.79,203.78,14.755429]
[1756599282470,3.91832903,203.79,203.78,28.35102301]
[1756599282992,3.91832903,203.79,203.78,13.59559401]
[1756599283191,29.91832903,203.79,203.78,18.50236901]
[1756599283871,29.97832903,203.79,203.78,18.50236901]
[1756599286405,26.06,203.79,203.78,19.21236901]
[1756599286583,29.97832903,203.79,203.78,18.50236901]
[1756599287290,29.97832903,203.79,203.78,19.21236901]
[1756599289295,29.97832903,203.79,203.78,18.50236901]
[1756599291495,29.97832903,203.79,203.78,56.92236901]
[1756599295971,4.54832903,203.79,203.76,0.03]
[1756599296172,8.82582277,203.77,203.76,0.03]
[1756599296800,9.39582277,203.77,203.76,0.03]
[1756599297692,5.47749374,203.77,203.76,0.03]
[1756599297900,9.39582277,203.77,203.76,0.03]
[1756599298295,8.82582277,203.77,203.76,0.03]
[1756599300299,9.39582277,203.77,203.76,0.03]
[1756599300705,17.44991314,203.77,203.76,0.03]
[1756599301390,55.84991314,203.77,203.76,0.03]
[1756599302393,51.7141518,203.77,203.76,0.03]
[1756599303406,13.3141518,203.77,203.76,0.03]
[1756599303597,51.7141518,203.77,203.76,0.03]
[1756599313425,13.3141518,203.77,203.76,0.03]
[1756599313591,51.7141518,203.77,203.76,0.03]
[1756599313795,13.3141518,203.77,203.76,0.03]
[1756599314304,51.7141518,203.77,203.76,0.03]
[1756599314518,13.3141518,203.77,203.76,0.03]
[1756599314712,51.7141518,203.77,203.76,0.03]
[1756599314912,13.3141518,203.77,203.76,0.03]
[1756599315108,51.7141518,203.77,203.76,0.03]
[1756599315721,33.83665806,203.74,203.73,0.03]
[1756599315915,72.23665806,203.74,203.73,0.03]
[1756599316504,72.23665806,203.74,203.71,0.03]
[1756599316719,7.83665806,203.72,203.71,0.71]
[1756599317018,46.23665806,203.72,203.71,0.71]
[1756599317616,51.14535627,203.72,203.71,0.71]
[1756599318318,51.14535627,203.72,203.71,0.03]
[1756599320209,55.05083033,203.72,203.71,0.03]
[1756599320927,51.14535627,203.72,203.71,0.03]
[1756599321103,8.81910509,203.73,203.71,0.71]
[1756599321305,3.91832903,203.72,203.71,0.71]
[1756599321626,7.83665806,203.72,203.71,0.71]
[1756599322008,3.91832903,203.72,203.71,0.71]
[1756599323529,7.83665806,203.72,203.71,0.71]
[1756599324729,7.83665806,203.72,203.71,3.078262]
[1756599330147,4.90823202,203.74,203.71,3.078262]
[1756599330331,3.91832903,203.72,203.71,2.398262]
[1756599330832,3.91832903,203.72,203.71,3.078262]
[1756599337539,2.50362186,203.72,203.71,3.078262]
[1756599337744,38.5181093,203.72,203.71,3.078262]
[1756599338045,43.42680751,203.72,203.71,2.398262]
[1756599338366,26.0,203.72,203.71,0.69]
[1756599338641,2.50362186,203.75,203.72,13.59559401]
[1756599338846,0.06,203.77,203.74,13.59559401]
[1756599339154,2.56362186,203.77,203.74,13.59559401]
[1756599339323,3.96859652,203.77,203.76,13.59559401]
[1756599339516,0.06,203.77,203.76,14.25559401]
[1756599339720,0.06,203.77,203.76,19.16332859]
[1756599339920,0.06,203.77,203.76,23.07192559]
[1756599340342,3.96859652,203.77,203.76,18.16419101]
[1756599342325,0.06,203.77,203.76,23.07192559]
[1756599344150,3.96859652,203.77,203.76,3.908597]
[1756599347937,3.96859652,203.77,203.76,4.568597]
[1756599348245,4.53859652,203.77,203.73,13.59559401]
[1756599348451,3.90859652,203.74,203.73,13.59559401]
[1756599348950,3.90859652,203.74,203.73,27.19118801]
[1756599349153,29.90859652,203.74,203.73,13.595594]
[1756599349449,26.0,203.72,203.71,14.28559401]
[1756599349649,29.90859652,203.72,203.71,14.28559401]
[1756599349859,3.90859652,203.72,203.71,14.28559401]
[1756599350073,3.90859652,203.72,203.71,28.57118801]
[1756599352258,7.81719304,203.72,203.71,14.315594]
[1756599353052,12.72589125,203.72,203.71,14.315594]
[1756599353655,4.90849772,203.73,203.71,14.315594]
[1756599353872,7.81719304,203.72,203.71,14.315594]
[1756599356866,12.72589125,203.72,203.71,14.315594]
[1756599357067,12.72589125,203.72,203.71,0.03]
[1756599358167,7.81719304,203.72,203.71,0.03]
[1756599358543,12.72589125,203.72,203.71,0.03]
[1756599359947,38.72589125,203.72,203.71,0.03]
[1756599360252,39.29589125,203.72,203.71,0.03]
[1756599360454,13.29589125,203.72,203.7,0.2]
[1756599360757,3.90859652,203.71,203.7,0.2]
[1756599361059,8.81753569,203.71,203.7,0.2]
[1756599362151,3.90859652,203.71,203.7,0.89]
[1756599362368,3.90859652,203.71,203.7,2.168262]
[1756599362540,3.90859652,203.71,203.7,0.2]
[1756599363059,8.81753569,203.71,203.7,0.2]
[1756599363245,34.81753569,203.71,203.7,0.2]
[1756599363645,29.90859652,203.71,203.7,0.89]
[1756599364048,4.90773458,203.76,203.7,0.2]
[1756599364249,3.90859652,203.71,203.7,0.2]
[1756599364459,3.90859652,203.71,203.7,13.825594]
[1756599364781,3.90859652,203.71,203.7,14.515594]
[1756599364963,3.90859652,203.71,203.7,28.11118801]
[1756599365165,0.06,203.77,203.71,13.59559401]
[1756599365474,0.06,203.77,203.73,13.59559401]
[1756599365679,0.06,203.77,203.72,42.93859652]
[1756599365680,0.06,203.77,203.75,13.59559401]
[1756599366061,0.06,203.77,203.76,14.28559401]
[1756599366265,0.06,203.77,203.76,18.25419101]
[1756599367349,3.96859652,203.77,203.76,18.25419101]
[1756599369181,29.96859652,203.77,203.76,3.968597]
[1756599369383,29.96859652,203.77,203.72,0.69]
[1756599369571,26.06,203.77,203.73,14.759784]
[1756599369780,3.90859652,203.74,203.73,14.759784]
[1756599370078,3.90859652,203.74,203.73,15.449784]
[1756599370471,3.90859652,203.74,203.72,13.59559401]
[1756599370687,3.90859652,203.73,203.72,14.28559401]
[1756599370989,3.90859652,203.73,203.72,29.04537801]
[1756599371777,29.90859652,203.73,203.72,29.04537801]
[1756599372790,3.90859652,203.73,203.72,29.04537801]
[1756599374003,4.90803625,203.75,203.72,29.04537801]
[1756599374178,3.90859652,203.73,203.72,29.04537801]
[1756599374380,3.90859652,203.73,203.72,14.28559401]
[1756599374598,3.90859652,203.73,203.72,19.19363001]
[1756599380610,0.06,203.77,203.72,19.19363001]
[1756599380781,3.90859652,203.73,203.72,18.50363001]
[1756599380984,3.90859652,203.73,203.72,13.59559401]
[1756599381183,3.90859652,203.73,203.72,28.35392701]
[1756599381383,3.90859652,203.73,203.72,29.04392701]
[1756599383085,3.90859652,203.73,203.72,14.758333]
[1756599383507,3.90859652,203.73,203.71,0.03]
[1756599383698,4.90777418,203.76,203.71,28.38392701]
[1756599383699,3.90859652,203.72,203.71,28.38392701]
[1756599383901,3.90859652,203.74,203.72,13.59559401]
[1756599384080,0.06,203.77,203.74,13.59559401]
[1756599384486,0.06,203.77,203.75,4.598597]
[1756599384684,0.06,203.77,203.76,13.59559401]
[1756599384892,0.06,203.79,203.76,14.28559401]
[1756599385092,0.06,203.79,203.78,13.59559401]
[1756599385401,0.06,203.79,203.78,51.91559401]
[1756599385697,0.06,203.79,203.78,52.60559401]
[1756599386413,0.06,203.79,203.78,57.51284692]
[1756599388118,0.06,203.79,203.78,65.06481571]
[1756599388286,0.06,203.8,203.78,65.06481571]
[1756599388492,0.06,203.8,203.79,21.83568523]
[1756599388985,0.06,203.81,203.8,17.50419053]
[1756599389191,1e-08,203.81,203.8,18.19419053]
[1756599389504,1e-08,203.82,203.8,21.83185613]
[1756599389710,1e-08,203.82,203.78,81.4953852]
[1756599389711,1e-08,203.82,203.81,65.05838672]
[1756599391424,0.06,203.91,203.85,3.90859652]
[1756599391622,0.06,203.91,203.87,17.50419053]
[1756599392098,0.06,203.91,203.87,19.47003353]
[1756599392305,0.06,203.91,203.87,20.15003353]
[1756599393210,0.06,203.91,203.87,16.24143701]
[1756599393417,0.06,203.91,203.87,25.0551201]
[1756599395016,0.06,203.91,203.87,37.31783653]
[1756599395197,0.06,203.91,203.9,17.50419053]
[1756599395397,0.06,203.91,203.9,60.70855541]
[1756599395597,0.06,203.91,203.9,61.38855541]
[1756599395901,0.06,203.91,203.9,63.35401241]
[1756599398641,0.06,203.91,203.9,25.05401241]
[1756599398798,1e-08,203.93,203.91,13.59559401]
[1756599398999,1e-08,203.93,203.92,55.80419053]
[1756599399304,1e-08,203.93,203.92,56.48419053]
[1756599399510,1e-08,203.93,203.92,58.44964753]
[1756599400797,1e-08,203.93,203.92,63.3535314]
[1756599400997,1e-08,203.93,203.92,59.42493488]
[1756599402020,1e-08,203.93,203.92,21.14493488]
[1756599402212,1e-08,203.93,203.92,59.42493488]
[1756599403529,1e-08,203.93,203.92,21.14493488]
[1756599403731,1e-08,203.93,203.92,59.42493488]
[1756599405817,3.56859653,203.97,203.93,13.59559401]
[1756599406027,4.22859653,203.97,203.95,13.59559401]
[1756599406226,4.22859653,203.97,203.96,38.28]
[1756599406933,4.22859653,203.97,203.96,53.020929]
[1756599408734,4.22859653,203.97,203.96,57.92385114]
[1756599409116,3.56859653,203.97,203.96,57.92385114]
[1756599409722,3.56859653,203.97,203.96,53.020929]
[1756599410128,0.06,203.98,203.97,13.59559401]
[1756599410332,3.96859652,203.98,203.97,13.59559401]
[1756599410518,4.62859652,203.98,203.97,13.59559401]
[1756599410835,4.62859652,203.98,203.97,28.33652201]
[1756599411423,4.62859652,203.98,203.97,66.61652201]
[1756599412037,4.62859652,203.98,203.97,28.33652201]
[1756599412331,4.62859652,203.98,203.97,66.61652201]
[1756599412937,4.62859652,203.98,203.97,38.28]
[1756599413139,4.62859652,203.98,203.97,51.87559401]
[1756599414320,4.62859652,203.98,203.97,13.59559401]
[1756599414644,4.62859652,203.98,203.97,51.87559401]
[1756599415438,3.96859652,203.98,203.97,51.87559401]
[1756599415951,3.96859652,203.98,203.97,66.61724601]
[1756599416125,3.96859652,203.98,203.97,28.33724601]
[1756599416430,3.96859652,203.98,203.97,51.87559401]
[1756599417818,0.06,203.98,203.97,51.87559401]
[1756599418023,3.96859652,203.98,203.97,52.55559401]
[1756599418237,3.96859652,203.98,203.97,66.61652201]
[1756599419140,3.96859652,203.98,203.97,13.59559401]
[1756599419336,4.62859652,203.98,203.97,13.59559401]
[1756599419542,4.62859652,203.98,203.97,51.85559401]
[1756599419842,3.96859652,203.98,203.97,51.85559401]
[1756599420253,3.96859652,203.98,203.97,13.59559401]
[1756599420547,3.96859652,203.98,203.97,51.85559401]
[1756599421931,3.96859652,203.98,203.97,13.59559401]
[1756599422133,3.96859652,203.98,203.97,51.85559401]
[1756599424646,3.96859652,203.98,203.97,56.81733001]
[1756599425237,3.96859652,203.98,203.97,62.41001177]
[1756599430854,3.96859652,203.98,203.97,24.15001177]
[1756599431156,3.96859652,203.98,203.97,62.41001177]
[1756599433571,0.06,203.98,203.97,62.41001177]
[1756599433863,3.96859652,203.98,203.97,62.41001177]
[1756599438282,4.63859652,203.98,203.97,4.961736]
[1756599438458,4.63859652,203.98,203.95,19.34]
[1756599438459,9.54103793,203.98,203.95,19.34]
[1756599438766,29.90859652,203.96,203.92,28.36942001]
[1756599438971,3.90859652,203.93,203.92,0.03]
[1756599439157,3.90859652,203.93,203.92,38.27]
[1756599440479,3.90859652,203.93,203.92,0.03]
[1756599440660,3.90859652,203.93,203.92,38.27]
[1756599440865,3.90859652,203.93,203.92,0.03]
[1756599441176,3.90859652,203.93,203.92,38.27]
[1756599441468,0.06,203.98,203.93,13.59559401]
[1756599441671,0.06,203.98,203.94,38.24]
[1756599441969,0.23,203.99,203.94,38.93]
[1756599442472,5.13225472,203.99,203.94,38.93]
[1756599442675,4.90196078,204.0,203.94,38.24]
[1756599442876,3.90859652,203.95,203.94,51.83559401]
[1756599444171,26.0,203.98,203.95,13.59559401]
[1756599444370,26.0,203.98,203.95,14.28559401]
[1756599444572,26.0,203.99,203.96,38.24]
[1756599445279,3.90859652,203.97,203.96,38.24]
[1756599446552,0.06,204.01,203.96,52.52559401]
[1756599446750,3.90859652,203.98,203.97,14.28559401]
[1756599446975,3.90859652,203.98,203.97,52.52559401]
[1756599448356,3.90859652,203.98,203.97,57.42827577]
[1756599449181,3.90859652,203.98,203.97,72.16703177]
[1756599451177,3.90859652,203.98,203.92,3.93859652]
[1756599451178,26.0,203.95,203.92,0.03]
[1756599451379,26.0,203.91,203.89,0.03]
[1756599451569,3.90859652,203.9,203.89,0.03]
[1756599452068,3.90859652,203.9,203.89,52.10559401]
[1756599453262,3.90859652,203.9,203.89,0.03]
[1756599453465,29.90859652,203.9,203.89,38.49]
[1756599454792,3.90859652,203.9,203.89,38.49]
[1756599457175,3.90859652,203.9,203.89,0.03]
[1756599457366,3.90859652,203.9,203.89,14.32559401]
[1756599458277,3.90859652,203.9,203.89,19.23019098]
[1756599459287,3.90859652,203.9,203.89,14.32559401]
[1756599459496,3.90859652,203.9,203.89,52.78559401]
[1756599460303,3.90859652,203.9,203.89,57.69019943]
[1756599461481,0.06,203.98,203.89,61.59879595]
[1756599461685,3.90859652,203.97,203.91,17.50419053]
[1756599461894,0.06,203.98,203.93,13.59559401]
[1756599462080,3.90859652,203.97,203.95,13.59559401]
[1756599462278,3.90859652,203.97,203.96,52.77559401]
[1756599462673,3.90859652,203.97,203.96,61.58711215]
[1756599474104,3.90859652,203.97,203.96,60.88711215]
[1756599474312,3.96859652,203.97,203.96,60.88711215]
[1756599474497,3.96859652,203.97,203.96,61.58711215]
[1756599474696,0.06,203.97,203.96,61.58711215]
[1756599474918,3.96859652,203.97,203.96,61.58711215]
[1756599479936,0.06,203.97,203.96,61.58711215]
[1756599480117,3.96859652,203.97,203.96,61.58711215]
[1756599482135,0.06,203.97,203.96,61.58711215]
[1756599483831,3.96859652,203.97,203.96,23.10711215]
[1756599484136,3.96859652,203.97,203.96,61.38711215]
[1756599484343,3.96859652,203.97,203.96,61.40711215]
[1756599484937,3.96859652,203.97,203.96,17.50419001]
[1756599485144,3.96859652,203.97,203.96,51.89559401]
[1756599487326,0.06,203.97,203.96,52.59559401]
[1756599487531,0.06,203.97,203.96,61.40711267]
[1756599487733,0.06,203.97,203.96,65.37570867]
[1756599488440,0.06,203.98,203.97,13.59559401]
[1756599488643,0.06,203.98,203.97,18.20419053]
[1756599489020,0.06,203.98,203.97,20.16897153]
[1756599490730,0.06,203.98,203.97,25.07165329]
[1756599494045,0.06,204.0,203.99,39.59559401]
[1756599494251,3.90859652,204.11,204.02,13.59559401]
[1756599494428,3.90859652,204.11,204.01,3.90859652]
[1756599494429,3.90859652,204.11,204.07,13.59559401]
[1756599494627,3.90859652,204.1,204.08,39.0]
[1756599494842,3.90859652,204.1,204.08,38.3]
[1756599495226,3.90859652,204.1,204.09,19.6313181]
[1756599495848,3.90859652,204.1,204.09,14.731519]
[1756599496045,3.90859652,204.1,204.09,51.91559401]
[1756599496342,3.90859652,204.1,204.09,66.64711201]